[Event "Live Chess"]
[Site "Chess.com"]
[Date "2023.05.20"]
[Round "-"]
[White "AbilifyXL"]
[Black "Delacorta"]
[Result "1-0"]
[WhiteElo "1971"]
[BlackElo "1423"]
[TimeControl "300"]
[EndTime "14:53:25 PDT"]
[Termination "AbilifyXL won by resignation"]

1. d4 {[%clk 0:04:59.4]} 1... e6 {[%clk 0:04:58.9]} 2. c4 {[%clk 0:04:58.5]}
2... d5 {[%clk 0:04:55.2]} 3. cxd5 {[%clk 0:04:57.5]} 3... exd5 {[%clk
0:04:53.5]} 4. Nc3 {[%clk 0:04:56.9]} 4... Nf6 {[%clk 0:04:51]} 5. Nf3 {[%clk
0:04:56.5]} 5... c6 {[%clk 0:04:48.3]} 6. Bg5 {[%clk 0:04:55.8]} 6... Be7 {[%clk
0:04:47.4]} 7. e3 {[%clk 0:04:55.1]} 7... O-O {[%clk 0:04:46.1]} 8. Qc2 {[%clk
0:04:54.1]} 8... h6 {[%clk 0:04:31.9]} 9. Bxf6 {[%clk 0:04:52.6]} 9... Bxf6
{[%clk 0:04:30.9]} 10. b4 {[%clk 0:04:52.5]} 10... a6 {[%clk 0:04:28.8]} 11. Bd3
{[%clk 0:04:50.9]} 11... Bg4 {[%clk 0:04:17.7]} 12. Be2 {[%clk 0:04:49.6]} 12...
Bxf3 {[%clk 0:04:14.2]} 13. Bxf3 {[%clk 0:04:48.7]} 13... Nd7 {[%clk 0:04:13.3]}
14. O-O {[%clk 0:04:47.7]} 14... g6 {[%clk 0:04:12.1]} 15. a4 {[%clk 0:04:45.6]}
15... Bg7 {[%clk 0:04:10]} 16. b5 {[%clk 0:04:44.6]} 16... Nf6 {[%clk
0:04:00.8]} 17. bxc6 {[%clk 0:04:41.6]} 17... bxc6 {[%clk 0:03:59.9]} 18. a5
{[%clk 0:04:40.8]} 18... Rb8 {[%clk 0:03:53.3]} 19. Rfc1 {[%clk 0:04:38.6]}
19... Qd6 {[%clk 0:03:46.9]} 20. Na4 {[%clk 0:04:35.5]} 20... Rfe8 {[%clk
0:03:33]} 21. Qxc6 {[%clk 0:04:31.5]} 21... Re6 {[%clk 0:03:10.6]} 22. Qxd6
{[%clk 0:04:27]} 22... Rxd6 {[%clk 0:03:09]} 23. h3 {[%clk 0:04:23.8]} 23... h5
{[%clk 0:03:03.6]} 24. Nb6 {[%clk 0:04:14.7]} 24... Bf8 {[%clk 0:02:50.6]} 25.
Rc7 {[%clk 0:04:09.9]} 25... Rdd8 {[%clk 0:02:47.1]} 26. Ra7 {[%clk 0:04:08]}
26... Ne8 {[%clk 0:02:15.7]} 27. Bxd5 {[%clk 0:03:49.2]} 1-0

[Event "Live Chess"]
[Site "Chess.com"]
[Date "2023.05.20"]
[Round "-"]
[White "JohanKjeldahl"]
[Black "FlyingChessKestrel13"]
[Result "1-0"]
[WhiteElo "1870"]
[BlackElo "2101"]
[TimeControl "300"]
[EndTime "14:53:30 PDT"]
[Termination "JohanKjeldahl won by resignation"]

1. c4 {[%clk 0:04:56.2]} 1... d6 {[%clk 0:04:58.7]} 2. Nc3 {[%clk 0:04:54]} 2...
g6 {[%clk 0:04:57.6]} 3. d4 {[%clk 0:04:52]} 3... Bg7 {[%clk 0:04:44.9]} 4. g3
{[%clk 0:04:50.7]} 4... Nc6 {[%clk 0:04:43.3]} 5. e3 {[%clk 0:04:48.5]} 5... e5
{[%clk 0:04:42]} 6. Nge2 {[%clk 0:04:44.6]} 6... Nge7 {[%clk 0:04:40.2]} 7. Bg2
{[%clk 0:04:42.8]} 7... O-O {[%clk 0:04:38.6]} 8. b3 {[%clk 0:04:41.6]} 8...
exd4 {[%clk 0:04:36.7]} 9. Nxd4 {[%clk 0:04:39]} 9... Nxd4 {[%clk 0:04:35.1]}
10. exd4 {[%clk 0:04:37.4]} 10... c5 {[%clk 0:04:34.5]} 11. Be3 {[%clk
0:04:34.4]} 11... Nf5 {[%clk 0:04:33.5]} 12. Ne2 {[%clk 0:04:00.7]} 12... Re8
{[%clk 0:04:20.3]} 13. O-O {[%clk 0:03:54.5]} 13... Rxe3 {[%clk 0:04:14.7]} 14.
fxe3 {[%clk 0:03:52]} 14... Nxe3 {[%clk 0:04:14.1]} 15. Qd2 {[%clk 0:03:49.7]}
15... Nxf1 {[%clk 0:04:12.4]} 16. Rxf1 {[%clk 0:03:47.7]} 16... Bg4 {[%clk
0:04:08.9]} 17. dxc5 {[%clk 0:03:42.9]} 17... dxc5 {[%clk 0:04:07.8]} 18. Bd5
{[%clk 0:03:31.5]} 18... Be6 {[%clk 0:03:59.2]} 19. Nf4 {[%clk 0:03:28.2]} 19...
Bd4+ {[%clk 0:03:56.6]} 20. Kg2 {[%clk 0:03:23.2]} 20... Bxd5+ {[%clk
0:03:55.9]} 21. Nxd5 {[%clk 0:03:21.3]} 21... b5 {[%clk 0:03:55.5]} 22. Qf4
{[%clk 0:03:12.7]} 22... Qd7 {[%clk 0:03:48.6]} 23. Qxd4 {[%clk 0:03:08.5]}
23... cxd4 {[%clk 0:03:25.3]} 24. Nf6+ {[%clk 0:03:07.2]} 24... Kg7 {[%clk
0:03:24.1]} 25. Nxd7 {[%clk 0:03:06.8]} 25... Rd8 {[%clk 0:03:21.4]} 26. Ne5
{[%clk 0:03:01.4]} 26... bxc4 {[%clk 0:03:19.3]} 27. Nxc4 {[%clk 0:02:58.6]} 1-0

[Event "Live Chess"]
[Site "Chess.com"]
[Date "2023.05.20"]
[Round "-"]
[White "f4nomore"]
[Black "lightningorderyt"]
[Result "1-0"]
[WhiteElo "1413"]
[BlackElo "520"]
[TimeControl "300"]
[EndTime "14:53:37 PDT"]
[Termination "f4nomore won by resignation"]

1. d4 {[%clk 0:04:58.4]} 1... d5 {[%clk 0:04:57.8]} 2. Bg5 {[%clk 0:04:55.6]}
2... Nc6 {[%clk 0:04:52.6]} 3. c3 {[%clk 0:04:53.5]} 3... f6 {[%clk 0:04:42.4]}
4. Bh4 {[%clk 0:04:51.3]} 4... e5 {[%clk 0:04:41]} 5. e3 {[%clk 0:04:49.6]} 5...
Nge7 {[%clk 0:04:35.4]} 6. Nf3 {[%clk 0:04:44.3]} 6... Bg4 {[%clk 0:04:30]} 7.
Be2 {[%clk 0:04:42]} 7... e4 {[%clk 0:04:26.2]} 8. Nfd2 {[%clk 0:04:40.5]} 8...
Bf5 {[%clk 0:04:22.1]} 9. O-O {[%clk 0:04:37.3]} 9... g5 {[%clk 0:04:17.6]} 10.
Bg3 {[%clk 0:04:35.1]} 10... Bg7 {[%clk 0:04:16.5]} 11. Bg4 {[%clk 0:04:19.4]}
11... O-O {[%clk 0:04:07.6]} 12. Bxf5 {[%clk 0:04:14.9]} 12... Nxf5 {[%clk
0:04:06.5]} 13. Qg4 {[%clk 0:04:08]} 13... Nce7 {[%clk 0:03:52.4]} 14. Na3
{[%clk 0:04:03.2]} 14... Nxg3 {[%clk 0:03:33.7]} 15. fxg3 {[%clk 0:04:00.1]}
15... c6 {[%clk 0:03:23.3]} 16. c4 {[%clk 0:03:45.6]} 16... f5 {[%clk 0:03:16]}
17. Qxg5 {[%clk 0:03:41.4]} 17... h6 {[%clk 0:03:12.7]} 18. Qh4 {[%clk
0:03:35.2]} 18... Kh7 {[%clk 0:02:59.4]} 19. cxd5 {[%clk 0:03:31.8]} 19... cxd5
{[%clk 0:02:56.9]} 20. Rac1 {[%clk 0:03:23.5]} 20... Bf6 {[%clk 0:02:53.1]} 21.
Qh3 {[%clk 0:03:20.9]} 21... Qb6 {[%clk 0:02:43.8]} 22. b3 {[%clk 0:03:17.1]}
22... Nc6 {[%clk 0:02:41.3]} 23. Qxf5+ {[%clk 0:03:09.3]} 23... Kg7 {[%clk
0:02:30.6]} 24. Qxd5 {[%clk 0:02:58.3]} 24... Rae8 {[%clk 0:02:15.6]} 25. Nxe4
{[%clk 0:02:52.5]} 25... Qb4 {[%clk 0:02:04.9]} 26. Nc4 {[%clk 0:02:40.2]} 26...
b5 {[%clk 0:01:39.5]} 27. Qxc6 {[%clk 0:02:25.3]} 1-0

[Event "Live Chess"]
[Site "Chess.com"]
[Date "2023.05.20"]
[Round "-"]
[White "Wild_Tiger"]
[Black "CeladonFish"]
[Result "0-1"]
[WhiteElo "1074"]
[BlackElo "1173"]
[TimeControl "300"]
[EndTime "14:53:45 PDT"]
[Termination "CeladonFish won by checkmate"]

1. d4 {[%clk 0:04:54.9]} 1... Nf6 {[%clk 0:04:58]} 2. Nf3 {[%clk 0:04:54.8]}
2... g6 {[%clk 0:04:57]} 3. e3 {[%clk 0:04:54.7]} 3... Bg7 {[%clk 0:04:56.4]} 4.
Bd3 {[%clk 0:04:52.9]} 4... O-O {[%clk 0:04:55.5]} 5. O-O {[%clk 0:04:51.1]}
5... d6 {[%clk 0:04:54.1]} 6. b3 {[%clk 0:04:47.7]} 6... Re8 {[%clk 0:04:53.5]}
7. Bb2 {[%clk 0:04:47.2]} 7... Nc6 {[%clk 0:04:50.4]} 8. Nbd2 {[%clk 0:04:47.1]}
8... e5 {[%clk 0:04:49.5]} 9. dxe5 {[%clk 0:04:44.5]} 9... dxe5 {[%clk
0:04:48.7]} 10. Nxe5 {[%clk 0:04:26.4]} 10... Nxe5 {[%clk 0:04:46.7]} 11. Bxe5
{[%clk 0:04:23.5]} 11... Rxe5 {[%clk 0:04:45.6]} 12. f4 {[%clk 0:04:21.3]} 12...
Re8 {[%clk 0:04:42.5]} 13. Rf3 {[%clk 0:04:17.1]} 13... Bg4 {[%clk 0:04:37.8]}
14. Rg3 {[%clk 0:04:12.7]} 14... Bxd1 {[%clk 0:04:35.9]} 15. Rxd1 {[%clk
0:04:09.5]} 15... Nh5 {[%clk 0:04:33.9]} 16. Rh3 {[%clk 0:04:06.9]} 16... Bc3
{[%clk 0:04:18.6]} 17. Nf3 {[%clk 0:04:03.6]} 17... Rxe3 {[%clk 0:04:14.8]} 18.
f5 {[%clk 0:03:49.6]} 18... gxf5 {[%clk 0:04:10.8]} 19. Rxh5 {[%clk 0:03:46.3]}
19... f4 {[%clk 0:03:59.5]} 20. Bxh7+ {[%clk 0:03:26]} 20... Kg7 {[%clk
0:03:56.4]} 21. Rxd8 {[%clk 0:03:25.9]} 21... Rxd8 {[%clk 0:03:54.6]} 22. h3
{[%clk 0:03:18.3]} 22... Rd1+ {[%clk 0:03:50.7]} 23. Kh2 {[%clk 0:03:14.4]}
23... Be1 {[%clk 0:03:49]} 24. Bd3 {[%clk 0:03:05]} 24... Bg3# {[%clk
0:03:47.6]} 0-1

[Event "Live Chess"]
[Site "Chess.com"]
[Date "2023.05.20"]
[Round "-"]
[White "Missedidea"]
[Black "McSlash1"]
[Result "1-0"]
[WhiteElo "1714"]
[BlackElo "2027"]
[TimeControl "300"]
[EndTime "14:53:48 PDT"]
[Termination "Missedidea won by resignation"]

1. d4 {[%clk 0:04:58]} 1... Nf6 {[%clk 0:04:57.7]} 2. c4 {[%clk 0:04:57]} 2...
g6 {[%clk 0:04:55.4]} 3. Nc3 {[%clk 0:04:55.9]} 3... d5 {[%clk 0:04:55.1]} 4.
cxd5 {[%clk 0:04:54.3]} 4... Nxd5 {[%clk 0:04:55]} 5. e4 {[%clk 0:04:53.4]} 5...
Nxc3 {[%clk 0:04:54.5]} 6. bxc3 {[%clk 0:04:52.7]} 6... Bg7 {[%clk 0:04:54.1]}
7. Bc4 {[%clk 0:04:51.2]} 7... O-O {[%clk 0:04:53.7]} 8. Ne2 {[%clk 0:04:50.2]}
8... c5 {[%clk 0:04:53.4]} 9. O-O {[%clk 0:04:48.6]} 9... Nc6 {[%clk 0:04:52.9]}
10. Be3 {[%clk 0:04:47.1]} 10... cxd4 {[%clk 0:04:52.4]} 11. cxd4 {[%clk
0:04:45.3]} 11... Na5 {[%clk 0:04:51.4]} 12. Bd3 {[%clk 0:04:43.1]} 12... Be6
{[%clk 0:04:49.4]} 13. d5 {[%clk 0:04:38.3]} 13... Bd7 {[%clk 0:04:39.7]} 14.
Rb1 {[%clk 0:04:30.6]} 14... b6 {[%clk 0:04:35.4]} 15. Nd4 {[%clk 0:04:12]}
15... Rc8 {[%clk 0:04:33.1]} 16. Qe2 {[%clk 0:03:57.2]} 16... Qc7 {[%clk
0:04:28.1]} 17. Rfc1 {[%clk 0:03:54.3]} 17... Qd6 {[%clk 0:04:20.4]} 18. Nb5
{[%clk 0:03:37]} 18... Bxb5 {[%clk 0:04:18.3]} 19. Bxb5 {[%clk 0:03:34.5]} 19...
Qa3 {[%clk 0:04:16.5]} 20. Rd1 {[%clk 0:03:24.3]} 20... Rc3 {[%clk 0:04:05.5]}
21. Bd2 {[%clk 0:03:10.4]} 21... Rc7 {[%clk 0:04:05]} 22. Bb4 {[%clk 0:03:05.6]}
22... Qxb4 {[%clk 0:03:31]} 23. Rxb4 {[%clk 0:03:03.1]} 23... Rc5 {[%clk
0:03:30.9]} 24. Bd3 {[%clk 0:02:58.1]} 24... Rfc8 {[%clk 0:03:29.5]} 25. g3
{[%clk 0:02:52.9]} 25... Bc3 {[%clk 0:03:25]} 26. Rbb1 {[%clk 0:02:48.3]} 26...
Bd4 {[%clk 0:03:21.2]} 27. Kg2 {[%clk 0:02:46.5]} 27... R8c7 {[%clk 0:03:14.4]}
28. h4 {[%clk 0:02:27.6]} 28... Nb7 {[%clk 0:03:10.7]} 29. Bb5 {[%clk
0:02:13.1]} 29... Nd6 {[%clk 0:03:07.6]} 30. Bc6 {[%clk 0:02:09.3]} 30... Bg7
{[%clk 0:02:46]} 31. Rbc1 {[%clk 0:02:02.5]} 31... Ra5 {[%clk 0:02:40.4]} 32.
Rc2 {[%clk 0:01:58.3]} 32... f5 {[%clk 0:02:33.4]} 33. e5 {[%clk 0:01:52.7]}
33... Ne4 {[%clk 0:02:31.6]} 34. d6 {[%clk 0:01:44.6]} 34... exd6 {[%clk
0:02:27.8]} 35. exd6 {[%clk 0:01:40.6]} 35... Rc8 {[%clk 0:02:17.9]} 36. d7
{[%clk 0:01:36.2]} 36... Rd8 {[%clk 0:02:17.4]} 37. Bxe4 {[%clk 0:01:28.1]}
37... Re5 {[%clk 0:02:16.4]} 38. Qc4+ {[%clk 0:01:24.9]} 38... Kh8 {[%clk
0:02:15.2]} 1-0

[Event "Live Chess"]
[Site "Chess.com"]
[Date "2023.05.20"]
[Round "-"]
[White "NomisY"]
[Black "chrisbradgate"]
[Result "1-0"]
[WhiteElo "1521"]
[BlackElo "861"]
[TimeControl "300"]
[EndTime "14:54:03 PDT"]
[Termination "NomisY won by checkmate"]

1. d4 {[%clk 0:04:56.6]} 1... d5 {[%clk 0:04:58.7]} 2. c4 {[%clk 0:04:55.7]}
2... dxc4 {[%clk 0:04:57.5]} 3. Nf3 {[%clk 0:04:53.8]} 3... Nf6 {[%clk
0:04:56.2]} 4. e3 {[%clk 0:04:53.1]} 4... Nc6 {[%clk 0:04:55]} 5. Bxc4 {[%clk
0:04:52]} 5... h6 {[%clk 0:04:51.2]} 6. O-O {[%clk 0:04:49.5]} 6... Bg4 {[%clk
0:04:49.8]} 7. Qb3 {[%clk 0:04:22]} 7... e6 {[%clk 0:04:15.8]} 8. Qxb7 {[%clk
0:04:10.6]} 8... Bxf3 {[%clk 0:03:45.2]} 9. gxf3 {[%clk 0:04:05.6]} 9... Qd7
{[%clk 0:03:13.9]} 10. Qxa8+ {[%clk 0:04:03.3]} 10... Ke7 {[%clk 0:03:12.2]} 11.
Bb5 {[%clk 0:03:51.2]} 11... Qd5 {[%clk 0:03:08.4]} 12. Qxc6 {[%clk 0:03:46.3]}
12... Qg5+ {[%clk 0:03:07.1]} 13. Kh1 {[%clk 0:03:44]} 13... Nd5 {[%clk
0:02:47.6]} 14. Nc3 {[%clk 0:03:29]} 14... Nxc3 {[%clk 0:02:46.1]} 15. bxc3
{[%clk 0:03:27]} 15... Kf6 {[%clk 0:02:38.1]} 16. e4 {[%clk 0:03:21.9]} 16...
Qh5 {[%clk 0:02:30.3]} 17. e5+ {[%clk 0:03:18]} 17... Kf5 {[%clk 0:02:24.8]} 18.
Qe4# {[%clk 0:03:14.3]} 1-0

[Event "Live Chess"]
[Site "Chess.com"]
[Date "2023.05.20"]
[Round "-"]
[White "IgorSchukin"]
[Black "Jo1ts"]
[Result "1-0"]
[WhiteElo "1745"]
[BlackElo "751"]
[TimeControl "300"]
[EndTime "14:54:06 PDT"]
[Termination "IgorSchukin won by checkmate"]

1. e4 {[%clk 0:04:58.4]} 1... d5 {[%clk 0:04:58.6]} 2. exd5 {[%clk 0:04:57.1]}
2... Qxd5 {[%clk 0:04:57.3]} 3. Nc3 {[%clk 0:04:56.4]} 3... Qa5 {[%clk
0:04:55.2]} 4. b4 {[%clk 0:04:54.2]} 4... Qxb4 {[%clk 0:04:52.3]} 5. Nb5 {[%clk
0:04:52.3]} 5... Qa5 {[%clk 0:04:42.8]} 6. Bc4 {[%clk 0:04:49.4]} 6... e6 {[%clk
0:04:27]} 7. Qh5 {[%clk 0:04:31.5]} 7... g6 {[%clk 0:04:03.1]} 8. Nd6+ {[%clk
0:04:28.2]} 8... cxd6 {[%clk 0:03:58.9]} 9. Qxa5 {[%clk 0:04:26.4]} 9... b6
{[%clk 0:03:56.3]} 10. Bb5+ {[%clk 0:04:23.7]} 10... Bd7 {[%clk 0:03:51.2]} 11.
Bxd7+ {[%clk 0:04:22.3]} 11... Nxd7 {[%clk 0:03:51.1]} 12. Qb5 {[%clk
0:04:17.6]} 12... d5 {[%clk 0:03:48.8]} 13. Nf3 {[%clk 0:04:15]} 13... Nf6
{[%clk 0:03:47.9]} 14. Ne5 {[%clk 0:04:13.4]} 14... Bd6 {[%clk 0:03:41]} 15.
Nxd7 {[%clk 0:04:11.7]} 15... Nxd7 {[%clk 0:03:39.8]} 16. d4 {[%clk 0:04:08.9]}
16... Rd8 {[%clk 0:03:39]} 17. Bh6 {[%clk 0:04:06.7]} 17... Rc8 {[%clk
0:03:17.4]} 18. O-O {[%clk 0:03:35]} 18... Rxc2 {[%clk 0:03:11.2]} 19. Rac1
{[%clk 0:03:32.1]} 19... Rxc1 {[%clk 0:02:55.9]} 20. Rxc1 {[%clk 0:03:30.2]}
20... Be7 {[%clk 0:02:55.3]} 21. Rc8+ {[%clk 0:03:26.5]} 21... Bd8 {[%clk
0:02:52.9]} 22. Bg5 {[%clk 0:03:22]} 22... Kf8 {[%clk 0:02:45.2]} 23. Rxd8+
{[%clk 0:03:18.5]} 23... Kg7 {[%clk 0:02:43.3]} 24. Rxh8 {[%clk 0:03:14.6]}
24... Kxh8 {[%clk 0:02:22.3]} 25. Qxd7 {[%clk 0:03:11.9]} 25... h6 {[%clk
0:02:18.7]} 26. Bf6+ {[%clk 0:03:07.5]} 26... Kh7 {[%clk 0:02:15.8]} 27. Qxf7#
{[%clk 0:03:06.1]} 1-0

[Event "Live Chess"]
[Site "Chess.com"]
[Date "2023.05.20"]
[Round "-"]
[White "Olisingapore"]
[Black "smoggyrabbit"]
[Result "1-0"]
[WhiteElo "1871"]
[BlackElo "1701"]
[TimeControl "300"]
[EndTime "14:54:21 PDT"]
[Termination "Olisingapore won on time"]

1. d4 {[%clk 0:04:55.7]} 1... e6 {[%clk 0:04:58.7]} 2. c4 {[%clk 0:04:55]} 2...
f5 {[%clk 0:04:57.8]} 3. g3 {[%clk 0:04:52.6]} 3... Nf6 {[%clk 0:04:56.4]} 4.
Bg2 {[%clk 0:04:52.3]} 4... d5 {[%clk 0:04:55.4]} 5. Nc3 {[%clk 0:04:50.9]} 5...
c6 {[%clk 0:04:54.4]} 6. Nf3 {[%clk 0:04:50.2]} 6... Bd6 {[%clk 0:04:52.3]} 7.
Qd3 {[%clk 0:04:48.3]} 7... O-O {[%clk 0:04:50.2]} 8. O-O {[%clk 0:04:47.8]}
8... Nbd7 {[%clk 0:04:33.9]} 9. cxd5 {[%clk 0:03:17.3]} 9... cxd5 {[%clk
0:04:33.8]} 10. Bg5 {[%clk 0:03:11.4]} 10... h6 {[%clk 0:04:27.5]} 11. Bf4
{[%clk 0:03:08.6]} 11... Bxf4 {[%clk 0:04:16.1]} 12. gxf4 {[%clk 0:03:08.5]}
12... Ne4 {[%clk 0:04:09.2]} 13. e3 {[%clk 0:02:40.7]} 13... b6 {[%clk
0:03:06.8]} 14. Rfc1 {[%clk 0:01:54.6]} 14... Bb7 {[%clk 0:03:02.7]} 15. Nb5
{[%clk 0:01:51.2]} 15... Qe7 {[%clk 0:02:34.7]} 16. Rc7 {[%clk 0:01:30.2]} 16...
Ba6 {[%clk 0:02:23.6]} 17. Rac1 {[%clk 0:01:28]} 17... g5 {[%clk 0:01:15.2]} 18.
a4 {[%clk 0:01:11.9]} 18... Rfc8 {[%clk 0:00:23]} 19. Ne5 {[%clk 0:01:05.5]}
19... Rxc7 {[%clk 0:00:19.3]} 20. Rxc7 {[%clk 0:01:00.1]} 20... Rd8 {[%clk
0:00:17.1]} 21. Nc6 {[%clk 0:00:56]} 21... Qf7 {[%clk 0:00:13]} 22. Nxd8 {[%clk
0:00:55]} 22... Qh5 {[%clk 0:00:11.7]} 23. Nxe6 {[%clk 0:00:48.8]} 23... Qh4
{[%clk 0:00:10.4]} 24. Rc8+ {[%clk 0:00:43.4]} 24... Kf7 {[%clk 0:00:09.4]} 25.
Qe2 {[%clk 0:00:24.1]} 25... Bxc8 {[%clk 0:00:07.4]} 26. fxg5 {[%clk 0:00:21]}
26... hxg5 {[%clk 0:00:06.2]} 27. Bxe4 {[%clk 0:00:17.6]} 27... fxe4 {[%clk
0:00:04.5]} 28. Nd6+ {[%clk 0:00:16.2]} 28... Kxe6 {[%clk 0:00:03.8]} 29. Qf1
{[%clk 0:00:12.7]} 29... Kxd6 {[%clk 0:00:01.8]} 30. Qg2 {[%clk 0:00:12]} 30...
Kc7 {[%clk 0:00:00.8]} 31. h3 {[%clk 0:00:11.1]} 31... Nf6 {[%clk 0:00:00.1]}
32. Qg3+ {[%clk 0:00:10.4]} 1-0

[Event "Live Chess"]
[Site "Chess.com"]
[Date "2023.05.20"]
[Round "-"]
[White "Daniel_Gliddon_FA"]
[Black "Ed_Knox"]
[Result "1-0"]
[WhiteElo "1396"]
[BlackElo "1435"]
[TimeControl "300"]
[EndTime "14:54:24 PDT"]
[Termination "Daniel_Gliddon_FA won by checkmate"]

1. e4 {[%clk 0:04:56.2]} 1... d5 {[%clk 0:04:58.5]} 2. exd5 {[%clk 0:04:53.3]}
2... Qxd5 {[%clk 0:04:57.5]} 3. Nc3 {[%clk 0:04:52.3]} 3... Qd8 {[%clk
0:04:55.7]} 4. d4 {[%clk 0:04:51.2]} 4... c6 {[%clk 0:04:55]} 5. Nf3 {[%clk
0:04:49.8]} 5... Bf5 {[%clk 0:04:54.4]} 6. Bd3 {[%clk 0:04:47.5]} 6... Bg6
{[%clk 0:04:51.6]} 7. O-O {[%clk 0:04:45.6]} 7... Nf6 {[%clk 0:04:48.4]} 8. Re1
{[%clk 0:04:38.8]} 8... e6 {[%clk 0:04:45.2]} 9. Qe2 {[%clk 0:04:30.5]} 9... Be7
{[%clk 0:04:38.3]} 10. Bg5 {[%clk 0:04:27.4]} 10... Bxd3 {[%clk 0:04:35.2]} 11.
Qxd3 {[%clk 0:04:24.5]} 11... h6 {[%clk 0:04:34]} 12. Bxf6 {[%clk 0:04:22]}
12... Bxf6 {[%clk 0:04:32.5]} 13. Ne4 {[%clk 0:04:19.9]} 13... Nd7 {[%clk
0:04:25.9]} 14. Nd6+ {[%clk 0:04:17.2]} 14... Ke7 {[%clk 0:04:19.8]} 15. Nxb7
{[%clk 0:04:14.6]} 15... Qb6 {[%clk 0:04:16.2]} 16. Nd6 {[%clk 0:04:11.1]} 16...
Kxd6 {[%clk 0:03:52.8]} 17. Ne5 {[%clk 0:04:04.6]} 17... Rhf8 {[%clk 0:03:25.6]}
18. Qa3+ {[%clk 0:03:57.4]} 18... Kc7 {[%clk 0:03:16]} 19. c4 {[%clk 0:03:39]}
19... Nxe5 {[%clk 0:03:12.4]} 20. dxe5 {[%clk 0:03:35.8]} 20... Bg5 {[%clk
0:02:31.6]} 21. Qd6+ {[%clk 0:03:32.2]} 21... Kb7 {[%clk 0:02:29.9]} 22. b4
{[%clk 0:03:21.5]} 22... a5 {[%clk 0:02:15.3]} 23. c5 {[%clk 0:03:17.4]} 23...
Qxb4 {[%clk 0:02:05]} 24. Qd7+ {[%clk 0:03:11.3]} 24... Ka6 {[%clk 0:02:00.3]}
25. Qxc6+ {[%clk 0:03:08.9]} 25... Ka7 {[%clk 0:01:52.4]} 26. Rab1 {[%clk
0:03:04.9]} 26... Qxe1+ {[%clk 0:01:09.7]} 27. Rxe1 {[%clk 0:02:59.4]} 27... Bd2
{[%clk 0:01:03.1]} 28. Qb6# {[%clk 0:02:55.7]} 1-0

[Event "Live Chess"]
[Site "Chess.com"]
[Date "2023.05.20"]
[Round "-"]
[White "weibs440"]
[Black "omisoc"]
[Result "0-1"]
[WhiteElo "931"]
[BlackElo "2136"]
[TimeControl "300"]
[EndTime "14:54:35 PDT"]
[Termination "omisoc won by resignation"]

1. e4 {[%clk 0:04:59.4]} 1... g6 {[%clk 0:04:57.7]} 2. d4 {[%clk 0:04:54.2]}
2... d6 {[%clk 0:04:56.4]} 3. Nc3 {[%clk 0:04:52.4]} 3... a6 {[%clk 0:04:55.1]}
4. Bd3 {[%clk 0:04:42.7]} 4... b5 {[%clk 0:04:53.1]} 5. a3 {[%clk 0:04:39.2]}
5... Bg7 {[%clk 0:04:51.9]} 6. Nf3 {[%clk 0:04:36.7]} 6... Nd7 {[%clk
0:04:51.6]} 7. O-O {[%clk 0:04:34.9]} 7... c5 {[%clk 0:04:50.4]} 8. d5 {[%clk
0:04:23.1]} 8... Ngf6 {[%clk 0:04:45.3]} 9. Ne2 {[%clk 0:04:20.8]} 9... c4
{[%clk 0:04:43.1]} 10. e5 {[%clk 0:03:45.6]} 10... Nxe5 {[%clk 0:04:26.5]} 11.
Nxe5 {[%clk 0:03:39.3]} 11... dxe5 {[%clk 0:04:26.4]} 12. Bxg6 {[%clk
0:03:20.5]} 12... hxg6 {[%clk 0:04:23.3]} 13. Bg5 {[%clk 0:03:13]} 13... Bb7
{[%clk 0:04:14.9]} 14. Nc3 {[%clk 0:02:47.8]} 14... Nxd5 {[%clk 0:04:08.8]} 15.
Re1 {[%clk 0:02:33.5]} 15... Nxc3 {[%clk 0:04:03.4]} 16. Qxd8+ {[%clk
0:02:31.4]} 16... Rxd8 {[%clk 0:04:00.7]} 17. bxc3 {[%clk 0:02:31.3]} 17... e4
{[%clk 0:03:56.7]} 18. f3 {[%clk 0:02:19.8]} 18... Bxc3 {[%clk 0:02:39.7]} 19.
Bxe7 {[%clk 0:01:40.1]} 19... Kxe7 {[%clk 0:02:35.6]} 20. Red1 {[%clk
0:01:32.9]} 20... Bxa1 {[%clk 0:02:31.3]} 21. Rxa1 {[%clk 0:01:31.3]} 21... Rd2
{[%clk 0:02:26.4]} 0-1

[Event "Live Chess"]
[Site "Chess.com"]
[Date "2023.05.20"]
[Round "-"]
[White "wadsy27"]
[Black "parcellforce"]
[Result "1-0"]
[WhiteElo "2560"]
[BlackElo "1385"]
[TimeControl "300"]
[EndTime "14:54:38 PDT"]
[Termination "wadsy27 won by resignation"]

1. d4 {[%clk 0:04:58.5]} 1... d6 {[%clk 0:04:59.4]} 2. Bf4 {[%clk 0:04:58.1]}
2... Nf6 {[%clk 0:04:58.6]} 3. e3 {[%clk 0:04:57.3]} 3... c6 {[%clk 0:04:56.6]}
4. Nf3 {[%clk 0:04:56.8]} 4... Qa5+ {[%clk 0:04:56.2]} 5. Nbd2 {[%clk 0:04:55]}
5... Bg4 {[%clk 0:04:53.7]} 6. Be2 {[%clk 0:04:53.8]} 6... Bxf3 {[%clk
0:04:52.9]} 7. Bxf3 {[%clk 0:04:52.8]} 7... e5 {[%clk 0:04:52.7]} 8. Bg3 {[%clk
0:04:48.2]} 8... exd4 {[%clk 0:04:46.2]} 9. exd4 {[%clk 0:04:47.5]} 9... Nbd7
{[%clk 0:04:38.8]} 10. O-O {[%clk 0:04:45.7]} 10... Be7 {[%clk 0:04:38.3]} 11.
Re1 {[%clk 0:04:45]} 11... Qd8 {[%clk 0:04:37.9]} 12. Bxd6 {[%clk 0:04:43.1]}
12... Nd5 {[%clk 0:04:23.4]} 13. Bxd5 {[%clk 0:04:38.1]} 13... cxd5 {[%clk
0:04:23.3]} 14. Rxe7+ {[%clk 0:04:37.2]} 1-0